bitfinex/quotes_SOLUSD_20250118
["timestamp","ask_amount","ask_price","bid_price","bid_amount"]
[1737202260244,0.063,240.89,240.84,19.85064569]
[1737202260450,4.2142,240.89,240.82,19.85064569]
[1737202260637,19.85064569,240.87,240.8,19.88064569]
[1737202260817,0.063,240.89,240.84,19.85064569]
[1737202261020,0.063,240.89,240.86,19.85064569]
[1737202262552,0.063,240.89,240.85,4.1518]
[1737202264646,0.063,240.89,240.88,43.62752969]
[1737202264821,0.063,240.89,240.88,44.24990588]
[1737202265146,0.063,240.89,240.88,48.40130588]
[1737202269328,0.063,240.93,240.91,20.0]
[1737202269527,0.0001,240.93,240.92,64.24985306]
[1737202270342,0.0001,240.93,240.92,44.39920737]
[1737202271040,0.0001,240.93,240.92,64.24985306]
[1737202271243,0.063,241.08,240.96,20.0]
[1737202271447,0.063,241.08,240.9,1.39348352]
[1737202271448,19.85064569,241.06,241.0,23.776884]
[1737202272226,19.85064569,241.05,241.0,23.776884]
[1737202272628,19.85064569,241.04,240.97,19.85064569]
[1737202272823,19.85064569,240.99,240.92,20.4729187]
[1737202273047,19.85064569,240.97,240.9,24.00154569]
[1737202273247,0.063,241.01,240.93,19.85064569]
[1737202273426,0.063,241.01,240.91,0.62243321]
[1737202273740,0.063,241.01,240.93,23.776884]
[1737202273942,0.063,241.01,240.95,23.776884]
[1737202274144,0.063,241.01,240.99,23.776884]
[1737202274450,0.063,241.01,240.97,19.85064569]
[1737202274750,0.063,241.01,240.99,19.85064569]
[1737202274963,0.063,241.01,241.0,23.776884]
[1737202275330,0.063,241.01,241.0,24.39905786]
[1737202275752,0.063,241.01,241.0,28.54835786]
[1737202275942,0.063,241.01,241.0,24.39905786]
[1737202276143,0.063,241.01,240.99,4.1494]
[1737202276364,0.063,241.01,240.99,19.85064569]
[1737202276665,0.063,241.01,241.0,24.39915576]
[1737202277249,0.063,241.01,240.99,19.85064569]
[1737202277758,0.063,241.01,240.97,19.85064569]
[1737202278871,0.063,241.01,240.95,19.85064569]
[1737202279045,4.2122,241.01,240.95,19.85064569]
[1737202279358,0.063,241.01,240.97,19.85064569]
[1737202279567,0.063,241.01,240.96,20.0]
[1737202279759,0.063,241.01,240.95,19.85064569]
[1737202279965,24.06284569,241.01,240.93,19.85064569]
[1737202280339,4.2122,241.01,240.96,20.0]
[1737202280540,24.06284569,241.01,240.96,20.0]
[1737202281055,0.063,241.01,241.0,19.85064569]
[1737202281261,0.063,241.01,240.98,19.85064569]
[1737202281557,0.063,241.01,240.87,20.7577]
[1737202281558,4.2122,241.01,240.92,19.85064569]
[1737202281763,19.85064569,240.99,240.92,19.85064569]
[1737202282368,19.85064569,240.99,240.9,39.85064569]
[1737202282677,19.85064569,240.99,240.95,20.0]
[1737202283353,19.85064569,240.97,240.89,19.85064569]
[1737202283552,19.85064569,240.91,240.85,0.03]
[1737202283868,19.85064569,240.89,240.85,0.03]
[1737202284039,19.85064569,240.87,240.85,0.03]
[1737202284667,6.513,240.86,240.85,0.03]
[1737202285166,21.39654569,240.81,240.8,0.03]
[1737202285668,21.39654569,240.81,240.72,0.03]
[1737202285840,19.85064569,240.73,240.72,0.03]
[1737202287065,19.85064569,240.73,240.61,19.85064569]
[1737202287256,19.85064569,240.66,240.6,0.03]
[1737202287458,19.85064569,240.64,240.6,0.03]
[1737202287753,10.6672,240.72,240.6,0.03]
[1737202287754,21.0527,240.72,240.6,0.03]
[1737202287959,19.85064569,240.63,240.6,0.03]
[1737202288350,19.85064569,240.61,240.6,0.03]
[1737202288749,10.6672,240.72,240.6,4.1861]
[1737202288946,19.85064569,240.7,240.61,19.85064569]
[1737202289254,19.85064569,240.68,240.6,0.03]
[1737202289850,19.85064569,240.66,240.6,0.03]
[1737202290071,19.85064569,240.64,240.6,0.03]
[1737202290453,19.85064569,240.62,240.6,0.03]
[1737202291262,4.1561,240.61,240.6,0.03]
[1737202291767,19.85064569,240.62,240.6,0.03]
[1737202291974,1.41184197,240.71,240.6,0.03]
[1737202291975,16.8987,240.72,240.6,0.03]
[1737202292175,19.85064569,240.66,240.6,0.03]
[1737202292967,19.85064569,240.7,240.62,19.85064569]
[1737202293168,26.36364569,240.72,240.64,24.00604569]
[1737202293351,30.51784569,240.72,240.62,24.00644569]
[1737202293765,19.85064569,240.7,240.62,24.00644569]
[1737202294456,10.6672,240.72,240.62,24.00644569]
[1737202294457,19.85064569,240.72,240.64,19.85064569]
[1737202294657,19.85064569,240.74,240.66,19.85064569]
[1737202295176,19.85064569,240.74,240.67,4.155]
[1737202295464,32.30629331,240.74,240.67,4.155]
[1737202295666,32.30629331,240.76,240.68,23.776884]
[1737202295867,6.3243,240.79,240.71,32.30629331]
[1737202296077,32.30629331,240.76,240.67,36.46129331]
[1737202297588,0.063,240.72,240.67,36.46129331]
[1737202297786,0.063,240.72,240.68,23.776884]
[1737202298075,0.063,240.72,240.67,36.46129331]
[1737202298076,0.063,240.72,240.69,32.30629331]
[1737202299084,38.19359331,240.79,240.7,4.1545]
[1737202299487,32.30629331,240.79,240.7,4.1545]
[1737202300179,32.30629331,240.84,240.75,32.30629331]
[1737202300388,32.30629331,240.84,240.77,32.30629331]
[1737202301663,32.30629331,240.86,240.78,4.1531]
[1737202302053,32.30629331,240.9,240.81,32.30629331]
[1737202303164,32.30629331,240.9,240.82,4.1524]
[1737202304585,32.30629331,240.9,240.83,32.30629331]
[1737202305283,32.30629331,240.92,240.84,27.928984]
[1737202305461,32.30629331,240.92,240.85,32.30629331]
[1737202305661,32.30629331,240.96,240.87,32.30629331]
[1737202306768,32.30629331,240.94,240.87,32.30629331]
[1737202306980,32.30629331,240.96,240.87,32.30629331]
[1737202307162,32.30629331,240.96,240.84,15.1549806]
[1737202307163,32.30629331,240.96,240.89,32.30629331]
[1737202307363,32.30629331,240.96,240.84,14.5324]
[1737202307364,32.30629331,240.96,240.87,32.30629331]
[1737202309286,32.30629331,240.96,240.88,4.1514]
[1737202309886,32.36929331,240.96,240.88,4.1514]
[1737202310685,32.36929331,240.96,240.89,23.776884]
[1737202311184,32.36929331,240.96,240.89,56.08317731]
[1737202311381,0.063,240.96,240.91,32.30629331]
[1737202311579,0.063,240.96,240.93,32.30629331]
[1737202311792,0.063,240.96,240.95,32.30629331]
[1737202313179,0.063,240.96,240.83,7.8961]
[1737202313180,32.36929331,240.96,240.86,32.30629331]
[1737202313365,0.063,240.96,240.92,32.30629331]
[1737202313772,0.063,240.96,240.94,32.30629331]
[1737202314174,0.063,240.96,240.95,23.776884]
[1737202315285,0.063,240.96,240.95,27.927084]
[1737202315698,0.063,241.01,240.99,23.776884]
[1737202315870,0.063,241.01,241.0,32.92852852]
[1737202316386,0.0001,241.01,241.0,56.70541252]
[1737202317484,0.0001,241.01,241.0,48.35786413]
[1737202317789,0.063,241.08,241.07,20.0]
[1737202318089,0.063,241.08,241.07,64.20825553]
[1737202319890,0.063,241.08,241.07,68.35635553]
[1737202320374,0.063,241.14,241.08,23.776884]
[1737202320689,0.063,241.14,241.13,19.80944492]
[1737202320886,0.063,241.14,241.13,43.58632892]
[1737202321186,19.80944492,241.28,241.18,23.776884]
[1737202321376,21.33554492,241.32,241.23,19.80944492]
[1737202321783,23.95364492,241.3,241.21,19.80944492]
[1737202322093,23.95364492,241.3,241.21,43.58632892]
[1737202322281,21.33554492,241.32,241.24,23.776884]
[1737202322481,21.33554492,241.32,241.24,36.116884]
[1737202323106,4.1437,241.33,241.25,19.80944492]
[1737202323271,19.80944492,241.32,241.24,12.34]
[1737202323470,19.80944492,241.3,241.24,12.34]
[1737202323669,4.1444,241.29,241.24,12.34]
[1737202323874,4.1446,241.28,241.24,12.34]
[1737202324090,24.01734492,241.26,241.24,12.34]
[1737202325495,24.01734492,241.26,241.15,19.80944492]
[1737202325696,4.1454,241.23,241.15,19.80944492]
[1737202326980,19.80944492,241.24,241.16,23.776884]
[1737202327894,0.063,241.26,241.2,23.776884]
[1737202328101,0.063,241.26,241.21,19.80944492]
[1737202328307,0.063,241.26,241.19,19.80944492]
[1737202328597,4.2079,241.26,241.19,19.80944492]
[1737202329396,0.063,241.26,241.19,19.80944492]
[1737202329584,39.61888984,241.2,241.12,0.62168276]
[1737202329783,19.80944492,241.13,241.01,4.1492]
[1737202329988,19.80944492,241.07,240.98,19.80944492]
[1737202330192,19.80944492,241.05,240.98,19.80944492]
[1737202330382,19.80944492,241.07,240.98,23.95904492]
[1737202330787,19.80944492,241.07,241.0,19.80944492]
[1737202331010,19.80944492,241.07,240.99,23.776884]
[1737202331189,19.80944492,241.07,240.98,23.95904492]
[1737202331384,19.80944492,241.05,240.98,19.80944492]
[1737202331701,19.80944492,241.11,241.03,23.776884]
[1737202332302,19.80944492,241.15,241.08,23.776884]
[1737202332601,19.80944492,241.17,241.08,19.80944492]
[1737202332903,19.80944492,241.15,241.08,19.80944492]
[1737202333502,32.1955285,241.15,241.1,23.776884]
[1737202333710,32.1955285,241.16,241.1,23.776884]
[1737202334804,32.1955285,241.13,241.06,32.1955285]
[1737202335012,32.1955285,241.13,241.07,23.776884]
[1737202335305,32.1955285,241.14,241.07,23.776884]
[1737202335482,32.2255285,241.15,241.08,32.1955285]
[1737202335688,0.03,241.15,241.08,32.1955285]
[1737202335884,0.03,241.15,241.04,14.5203]
[1737202336088,0.03,241.15,241.09,32.1955285]
[1737202336288,0.03,241.15,241.08,75.9724125]
[1737202336506,0.03,241.15,241.09,4.1478]
[1737202336708,32.1955285,241.14,241.08,20.0]
[1737202336911,32.2255285,241.15,241.07,36.3435285]
[1737202337107,0.03,241.15,241.08,23.776884]
[1737202337286,0.03,241.15,241.09,32.1955285]
[1737202337606,32.1955285,241.1,241.02,32.1955285]
[1737202337811,32.1955285,241.09,241.02,32.1955285]
[1737202338013,32.1955285,241.1,241.02,32.1955285]
[1737202338789,32.1955285,241.09,241.04,20.0]
[1737202339213,32.1955285,241.1,241.04,20.0]
[1737202339408,0.03,241.15,240.99,36.4079285]
[1737202339409,32.1955285,241.07,240.99,36.4079285]
[1737202340620,32.1955285,241.1,241.02,32.1955285]
[1737202340917,32.1955285,241.09,241.02,32.1955285]
[1737202341093,32.1955285,241.1,241.02,32.1955285]
[1737202341495,32.1955285,241.1,240.99,14.5862]
[1737202341496,32.1955285,241.1,241.03,32.1955285]
[1737202341699,1.5266,241.11,241.05,32.1955285]
[1737202341914,1.5266,241.11,241.07,32.1955285]
[1737202342213,32.2255285,241.15,241.08,32.1955285]
[1737202342418,32.1955285,241.14,241.07,32.1955285]
[1737202342618,32.1955285,241.14,241.08,4.148]
[1737202343031,32.1955285,241.13,241.05,32.1955285]
[1737202343523,32.1955285,241.14,241.06,32.1955285]
[1737202345020,32.1955285,241.12,241.05,4.1484]
[1737202345202,32.1955285,241.1,241.02,36.3444285]
[1737202345412,32.1955285,241.1,241.02,32.1955285]
[1737202346726,32.1955285,241.1,241.02,36.3444285]
[1737202347103,32.1955285,241.1,241.02,36.4074285]
[1737202347416,0.03,241.15,241.07,32.1955285]
[1737202347609,0.03,241.15,241.11,32.1955285]
[1737202348919,0.03,241.15,241.12,4.1473]
[1737202349421,0.063,241.26,241.18,23.776884]
[1737202349717,0.063,241.26,241.25,32.1955285]
[1737202350627,0.063,241.26,241.25,36.3405285]
[1737202351009,0.063,241.26,241.2,32.1955285]
[1737202351010,0.063,241.26,241.23,4.1452]
[1737202351417,0.063,241.26,241.24,32.1955285]
[1737202351816,0.063,241.26,241.22,32.1955285]
[1737202352329,0.063,241.26,241.2,32.1955285]
[1737202353113,0.063,241.26,241.22,32.1955285]
[1737202353309,0.063,241.26,241.2,36.3413285]
[1737202354131,0.063,241.26,241.2,32.1955285]
[1737202354541,0.063,241.26,241.14,10.367]
[1737202354542,32.1955285,241.25,241.18,4.1462]
[1737202354840,32.1955285,241.25,241.16,36.3419285]
[1737202355223,32.1955285,241.23,241.15,4.1467]
[1737202355423,19.80177607,241.25,241.16,19.80177607]
[1737202356234,0.063,241.26,241.22,19.80177607]
[1737202357623,0.063,241.26,241.22,23.94717607]
[1737202358528,0.063,241.26,241.24,19.80177607]
[1737202359723,0.063,241.26,241.25,4.145]
[1737202364326,0.063,241.26,241.22,19.80177607]
[1737202366118,0.063,241.26,241.18,19.80177607]
[1737202366119,19.80177607,241.25,241.18,19.80177607]
[1737202366331,19.80177607,241.23,241.16,23.94837607]
[1737202366524,19.80177607,241.22,241.16,4.1466]
[1737202366935,19.80177607,241.24,241.16,43.94837607]
[1737202367241,19.80177607,241.24,241.16,23.94837607]
[1737202367442,0.063,241.26,241.2,19.80177607]
[1737202368553,0.063,241.26,241.21,4.1457]
[1737202369737,0.063,241.26,241.19,19.80177607]
[1737202370825,19.80177607,241.24,241.16,23.94837607]
[1737202371022,19.80177607,241.21,241.15,0.063]
[1737202371225,19.80177607,241.22,241.15,4.2097]
[1737202371742,19.80177607,241.22,241.16,19.80177607]
[1737202372744,0.063,241.26,241.2,19.80177607]
[1737202372923,0.063,241.26,241.21,19.80177607]
[1737202373748,0.063,241.26,241.2,4.1459]
[1737202374745,19.80177607,241.24,241.2,4.1459]
[1737202375249,19.80177607,241.24,241.18,4.1462]
[1737202375425,19.80177607,241.24,241.17,19.80177607]
[1737202375426,19.80177607,241.24,241.17,4.1464]
[1737202375925,19.80177607,241.22,241.16,4.1466]
[1737202377251,19.80177607,241.24,241.17,19.80177607]
[1737202377424,19.86477607,241.26,241.17,19.80177607]
[1737202378243,19.86477607,241.26,241.19,19.80177607]
[1737202378633,19.86477607,241.26,241.17,19.80177607]
[1737202379125,0.063,241.26,241.19,19.80177607]
[1737202379436,24.00967607,241.26,241.19,19.80177607]
[1737202380121,0.063,241.26,241.22,20.0]
[1737202380326,0.063,241.26,241.21,19.80177607]
[1737202380327,0.063,241.26,241.24,19.80177607]
[1737202380852,0.063,241.26,241.16,4.1466]
[1737202380853,12.3147,241.25,241.16,4.1466]
[1737202381026,19.80177607,241.2,241.15,0.063]
[1737202381338,19.80177607,241.18,241.15,0.063]
[1737202382840,19.80177607,241.2,241.16,4.1466]
[1737202383136,19.80177607,241.2,241.15,0.063]
[1737202384258,19.80177607,241.18,241.15,0.063]
[1737202384749,19.80177607,241.16,241.15,0.063]
[1737202385326,23.776884,241.15,241.02,0.063]
[1737202385550,19.80177607,241.07,241.02,0.063]
[1737202386937,1.6199,241.1,241.03,19.80177607]
[1737202387953,19.80177607,241.11,241.04,4.1486]
[1737202388127,26.35157607,241.15,241.07,19.80177607]
[1737202389261,26.35157607,241.15,241.08,4.148]
[1737202389559,19.80177607,241.13,241.08,4.148]
[1737202390256,19.80177607,241.13,241.06,4.1482]
[1737202390456,19.80177607,241.11,241.06,4.1482]
[1737202391157,19.80177607,241.11,241.03,19.80177607]
[1737202391334,19.80177607,241.11,241.04,4.1486]
[1737202391951,19.80177607,241.09,241.04,24.1486]
[1737202393435,19.75354551,241.09,241.04,24.1486]
[1737202394156,19.80177607,241.11,241.04,24.1486]
[1737202394359,19.80177607,241.09,241.06,0.063]
[1737202394541,19.80177607,241.07,241.06,0.063]
[1737202399268,6.5498,241.15,241.06,0.063]
[1737202399473,38.291184,241.14,241.06,0.063]
[1737202399665,19.80177607,241.08,241.06,0.063]
[1737202401261,23.94977607,241.08,241.06,0.063]
[1737202401553,19.80177607,241.08,241.06,0.063]
[1737202402375,19.80177607,241.08,241.06,4.2113]
[1737202402678,19.80177607,241.1,241.06,0.063]
[1737202403176,19.80177607,241.1,241.06,4.2113]
[1737202403349,12.38675915,241.11,241.06,4.2113]
[1737202404869,6.5115,241.21,241.08,20.0]
[1737202405053,6.5115,241.21,241.14,12.38675915]
[1737202406091,12.44975915,241.26,241.17,12.38675915]
[1737202406377,12.44975915,241.26,241.19,12.38675915]
[1737202406673,0.063,241.26,241.23,12.38675915]
[1737202406887,0.063,241.26,241.25,12.38675915]
[1737202407057,0.063,241.26,241.25,16.53175915]
[1737202407460,0.063,241.26,241.25,23.92860914]
[1737202409556,0.03,241.34,241.28,20.0]
[1737202409746,0.03,241.34,241.31,19.78360914]
[1737202409953,0.03,241.34,241.27,19.78360914]
[1737202410270,19.81360914,241.34,241.27,19.78360914]
[1737202410578,19.81360914,241.34,241.25,4.145]
[1737202410579,19.81360914,241.34,241.25,23.92860914]
[1737202410765,19.78360914,241.27,241.26,12.34]
[1737202410968,19.78360914,241.27,241.19,19.78360914]
[1737202411276,19.78360914,241.27,241.21,19.78360914]
[1737202411479,19.78360914,241.27,241.2,4.1459]
[1737202411680,19.78360914,241.27,241.2,23.92950914]
[1737202412374,19.78360914,241.29,241.2,23.92950914]
[1737202413682,19.78360914,241.29,241.22,19.78360914]
[1737202415076,19.78360914,241.29,241.23,4.1454]
[1737202417376,19.78360914,241.29,241.22,19.78360914]
[1737202417564,19.78360914,241.29,241.22,23.92910914]
[1737202418666,0.03,241.34,241.28,19.78360914]
[1737202418875,0.03,241.34,241.32,19.78360914]
[1737202419183,19.81360914,241.34,241.26,19.78360914]
[1737202419483,19.78360914,241.32,241.24,19.78360914]
[1737202420794,19.78360914,241.32,241.25,4.145]
[1737202421193,19.78360914,241.32,241.26,19.78360914]
[1737202421792,19.81360914,241.34,241.26,19.78360914]
[1737202422687,19.81360914,241.34,241.27,4.1447]
[1737202424689,19.78360914,241.32,241.25,4.1449]
[1737202426195,19.78360914,241.28,241.22,0.063]
[1737202426365,19.78360914,241.26,241.22,0.063]
[1737202426899,19.78360914,241.24,241.22,0.063]
[1737202429392,12.37448259,241.23,241.22,0.063]
[1737202432377,20.13178259,241.26,241.22,0.063]
[1737202433165,12.37448259,241.24,241.22,0.063]
[1737202433586,11.9022,241.26,241.22,0.063]
[1737202433587,12.37448259,241.23,241.22,0.063]
[1737202435197,16.51988259,241.23,241.22,0.063]
[1737202439099,4.144,241.31,241.22,0.063]
[1737202439598,12.37448259,241.26,241.22,0.063]
[1737202440790,14.5041,241.31,241.22,0.063]
[1737202440791,12.37448259,241.24,241.22,0.063]
[1737202440990,4.1454,241.23,241.22,0.063]
[1737202442695,10.3623,241.26,241.22,0.063]
[1737202442696,7.7873,241.32,241.22,0.063]
[1737202442896,12.37448259,241.26,241.22,0.063]
[1737202443104,12.37448259,241.24,241.22,0.063]
[1737202444108,4.1454,241.23,241.22,0.063]
[1737202444502,12.37448259,241.24,241.22,0.063]
[1737202444888,16.51968259,241.24,241.22,0.063]
[1737202445511,12.37448259,241.24,241.22,0.063]
[1737202445980,16.51968259,241.24,241.22,0.063]
[1737202447398,12.37448259,241.3,241.22,4.2084]
[1737202450797,12.37448259,241.28,241.22,0.063]
[1737202450989,12.37448259,241.28,241.22,4.2085]
[1737202451719,12.37448259,241.28,241.22,20.063]
[1737202452792,12.37448259,241.28,241.22,0.063]
[1737202453114,4.1442,241.3,241.22,0.063]
[1737202453317,12.37448259,241.27,241.22,4.2085]
[1737202454704,12.37448259,241.28,241.22,4.2085]
[1737202455517,0.03,241.32,241.27,20.0]
[1737202455725,0.03,241.32,241.28,12.37448259]
[1737202456024,0.03,241.32,241.29,12.37448259]
[1737202456321,0.03,241.32,241.27,12.37448259]
[1737202456495,0.03,241.28,241.27,12.37448259]
[1737202456697,0.03,241.28,241.27,16.51918259]
[1737202457418,12.37448259,241.32,241.27,4.1447]
[1737202458214,12.37448259,241.32,241.25,32.37448259]
[1737202458404,12.37448259,241.32,241.26,16.51938259]
[1737202458601,12.37448259,241.33,241.26,16.51938259]
[1737202458909,12.37448259,241.33,241.26,26.88158259]
[1737202460818,12.37448259,241.33,241.24,4.1452]
[1737202461022,12.37448259,241.28,241.24,4.1452]
[1737202461319,12.37448259,241.3,241.25,20.0]
[1737202462391,12.37448259,241.28,241.23,4.1453]
[1737202464320,12.37448259,241.3,241.23,4.1453]
[1737202464996,12.37448259,241.28,241.22,4.2085]
[1737202465201,12.37448259,241.26,241.22,0.063]
[1737202465527,12.37448259,241.26,241.22,4.2084]
[1737202467415,12.37448259,241.26,241.22,0.063]
[1737202468022,16.51938259,241.26,241.22,0.063]
[1737202468203,12.37448259,241.26,241.22,0.063]
[1737202468519,4.1448,241.27,241.22,0.063]
[1737202468520,16.51968259,241.24,241.22,0.063]
[1737202469326,4.1452,241.24,241.22,0.063]
[1737202469498,12.37448259,241.23,241.22,0.063]
[1737202470004,4.1452,241.24,241.22,0.063]
[1737202470216,12.37448259,241.23,241.22,0.063]
[1737202475301,4.1452,241.24,241.22,0.063]
[1737202475624,12.37448259,241.24,241.22,0.063]
[1737202476824,16.51978259,241.24,241.22,0.063]
[1737202477125,23.776884,241.23,241.22,0.063]
[1737202477832,23.776884,241.19,241.06,0.063]
[1737202478128,12.37448259,241.08,241.06,0.063]
[1737202478805,12.37448259,241.1,241.06,0.063]
[1737202481803,12.37448259,241.08,241.06,0.063]
[1737202482018,16.52248259,241.08,241.06,0.063]
[1737202482625,12.37448259,241.08,241.06,0.063]
[1737202483520,16.52248259,241.08,241.06,0.063]
[1737202486509,12.37448259,241.1,241.06,0.063]
[1737202488027,12.37448259,241.1,241.06,4.2113]
[1737202488326,12.37448259,241.1,241.06,0.063]
[1737202491431,12.37448259,241.14,241.07,12.37448259]
[1737202492030,12.37448259,241.09,241.06,0.063]
[1737202493532,12.37448259,241.09,241.06,5.063]
[1737202494837,12.37448259,241.07,241.06,5.063]
[1737202497319,12.37448259,241.09,241.06,9.2113]
[1737202497526,12.37448259,241.11,241.06,9.2113]
[1737202497829,12.37448259,241.14,241.06,9.2113]
[1737202498431,12.37448259,241.1,241.06,5.063]
[1737202499635,12.37448259,241.08,241.06,5.063]
[1737202500236,22.8166,241.16,241.06,5.063]
[1737202500237,20.0,241.13,241.06,5.063]
[1737202500429,12.37448259,241.07,241.06,5.063]
[1737202501936,4.1478,241.1,241.06,5.063]
[1737202502139,12.37448259,241.12,241.06,5.063]
[1737202502328,10.3663,241.17,241.06,5.063]
[1737202502535,12.37448259,241.14,241.06,5.063]
[1737202502736,12.37448259,241.08,241.06,5.063]
[1737202503748,4.1481,241.07,241.06,5.063]
[1737202504050,4.1481,241.07,241.02,0.063]
[1737202504051,23.776884,241.06,241.02,0.063]
[1737202504463,12.37448259,241.03,241.02,0.063]
[1737202504754,36.15136659,241.03,241.02,0.063]
[1737202505244,36.15136659,241.03,241.02,0.0001]
[1737202505640,40.30016659,241.03,241.02,0.0001]
[1737202506932,36.226884,241.02,240.9,0.063]
[1737202507133,12.37448259,240.92,240.9,0.063]
[1737202507742,8.13383905,241.07,240.9,0.063]
[1737202508042,12.37448259,241.02,240.93,12.37448259]
[1737202509249,6.5193,241.07,240.93,16.52498259]
[1737202509554,12.37448259,241.04,240.97,12.37448259]
[1737202509857,12.37448259,241.07,240.99,12.37448259]
[1737202510062,12.37448259,241.09,241.01,12.37448259]
[1737202510358,12.37448259,241.11,241.03,12.37448259]
[1737202510535,12.37448259,241.09,240.96,21.6489]
[1737202510739,12.37448259,241.09,241.01,12.37448259]
[1737202510937,12.37448259,241.11,241.04,4.1486]
[1737202511173,12.37448259,241.13,241.05,12.37448259]
[1737202512350,4.1463,241.18,241.05,12.37448259]
[1737202512351,12.37448259,241.15,241.1,20.0]
[1737202512553,12.37448259,241.19,241.11,12.37448259]
[1737202513053,0.03,241.22,241.15,32.37448259]
[1737202513555,0.03,241.22,241.15,12.37448259]
[1737202513762,0.03,241.22,241.15,32.37448259]
[1737202515370,19.83130548,241.22,241.16,4.1466]
[1737202517464,0.03,241.22,241.16,23.94790548]
[1737202519866,19.80130548,241.19,241.1,19.80130548]
[1737202520065,19.80130548,241.12,241.06,0.063]
[1737202520366,19.80130548,241.14,241.06,24.01260548]
[1737202521367,19.80130548,241.18,241.11,20.0]
[1737202521551,19.80130548,241.16,241.06,0.063]
[1737202521751,19.80130548,241.09,241.06,0.063]
[1737202522476,19.80130548,241.09,241.06,4.2113]
[1737202523476,19.80130548,241.09,241.06,0.063]
[1737202524547,19.80130548,241.07,241.06,0.063]
[1737202525149,47.72628948,241.07,241.06,0.063]
[1737202525357,23.776884,241.06,240.91,2.61]
[1737202525574,19.80130548,240.97,240.9,0.063]
[1737202526272,19.80130548,240.97,240.91,20.0]
[1737202526865,19.80130548,240.97,240.9,4.214]
[1737202527450,19.80130548,240.99,240.9,24.01530548]
[1737202528352,23.776884,241.06,240.92,19.80130548]
[1737202528353,19.80130548,241.01,240.92,19.80130548]
[1737202529271,19.80130548,241.03,240.94,19.80130548]
[1737202530052,19.80130548,241.05,240.96,19.80130548]
[1737202530851,19.80130548,241.03,240.94,19.80130548]
[1737202531170,19.80130548,241.07,240.97,39.80130548]
[1737202531364,19.80130548,241.07,240.99,19.80130548]
[1737202531753,19.80130548,241.1,241.01,19.80130548]
[1737202533553,19.80130548,241.08,240.99,19.80130548]
[1737202533752,19.80130548,241.02,240.93,19.80130548]
[1737202533976,19.80130548,241.02,240.95,2.61]
[1737202534275,19.80130548,241.0,240.95,2.61]
[1737202534470,19.80130548,240.98,240.95,2.61]
[1737202534771,19.80130548,240.98,240.91,0.063]
[1737202534951,19.80130548,240.98,240.91,4.2138]
[1737202536067,19.80130548,241.09,240.96,19.80130548]
[1737202536278,19.80130548,241.09,240.99,19.80130548]
[1737202536456,19.80130548,241.07,240.99,19.80130548]
[1737202536660,4.1471,241.13,241.01,19.80130548]
[1737202536855,19.80130548,241.11,241.01,19.80130548]
[1737202538290,19.80130548,241.11,241.02,4.149]
[1737202540477,19.80130548,241.09,241.02,4.149]
[1737202541375,19.80130548,241.07,240.97,21.44970548]
[1737202541566,19.80130548,241.04,240.97,4.2127]
[1737202542587,19.80130548,241.06,240.97,24.01400548]
[1737202543986,23.94960548,241.06,240.97,24.01400548]
[1737202546089,19.80130548,241.04,240.97,24.01400548]
[1737202548287,0.03,241.11,240.99,19.80130548]
[1737202548584,0.03,241.11,240.97,14.5874]
[1737202548585,19.80130548,241.04,240.97,0.063]
[1737202548786,19.80130548,241.02,240.97,0.063]
[1737202548980,19.80130548,241.02,240.97,4.2128]
[1737202549293,19.80130548,241.04,240.97,4.2128]
[1737202549782,19.80130548,241.04,240.97,0.063]
[1737202549982,19.80130548,241.02,240.97,0.063]
[1737202550683,23.776884,241.1,240.97,4.2127]
[1737202550684,19.80130548,241.04,240.97,4.2127]
[1737202551479,12.39496066,241.04,240.97,4.2127]
[1737202552187,12.39496066,241.06,241.0,20.0]
[1737202552387,12.42496066,241.11,241.01,12.39496066]
[1737202552997,0.03,241.06,241.01,12.39496066]
[1737202553290,0.03,241.06,241.05,20.0]